Cogmind - Beta 17.1 @@@ ROGUE MODE // 2026.08.26 @ 04:10:25 Player: THN-L0C Result: Destroyed by Autobeam Turret with Autobeam Performance ------------- Evolutions (0) 0 Regions Visited (3) 600 Robots Destroyed (49) 245 Value Destroyed (1066) 1066 Prototype IDs (14) 280 Alien Tech Used (0) 0 Bonus (0) 0 TOTAL SCORE: 2191 Bonus ------- None Cogmind --------- Core Integrity 0/250 Matter 205/300 Energy 99/100 System Corruption 0% Temperature Cool (12) Movement Rolling (150) Ox4 Location -10/Subcaves Parts ------- > --- POWER (1) -------- Subdweller Power Source > --- PROPULSION (2) --- Subdweller Monowheel Subdweller Monowheel > --- UTILITY (2) ------ Huge Storage Unit Makeshift Light Armor Plating > --- WEAPON (2) ------- Battle Rifle Rocket Launcher > --- INVENTORY (25) --- Medium Matter Pod (100) Improved Terrain Scanner Gun Armor Bomb Drone Bay Makeshift Laser Subdweller Beam Cannon Battle Rifle Heavy Battle Rifle Makeshift Hammer SUBCON Basin (Full) Peak State ------------ > --- POWER ------------ Subdweller Power Source > --- PROPULSION ------- Subdweller Monowheel Subdweller Monowheel > --- UTILITY ---------- Huge Storage Unit Makeshift Light Armor Plating > --- WEAPON ----------- Battle Rifle Battle Rifle > --- INVENTORY -------- Medium Matter Pod Improved Terrain Scanner Gun Armor Bomb Drone Bay Makeshift Laser Subdweller Beam Cannon Heavy Battle Rifle Rocket Launcher Makeshift Hammer SUBCON Basin [Rating: 37] Favorites ----------- Power Light Nuclear Core Engine Subdweller Power Source Power Core Light Nuclear Core Propulsion Light Treads Treads Light Treads Wheel Subdweller Monowheel Utility Huge Storage Unit Device Seismic Detector Storage Huge Storage Unit Protection Propulsion Shielding Weapon Autogun Energy Cannon Subdweller Beam Cannon Ballistic Gun Autogun Launcher Mini Grenade Launcher Special Weapon Mining Laser Impact Weapon Hammer Build | -11 -10 -10 -10 ------- Run | Yrd Mat Min Sub Slots Evolved . | . . . . Power . | . . . . Propulsion . | . . . . Utility . | . . . . Weapon . | . . . . Parts Attached 43 | 7 13 2 21 Power 5 | 1 2 . 2 Engine 4 | 1 1 . 2 Core 1 | . 1 . . Reactor . | . . . . Propulsion 12 | 2 3 . 7 Treads 5 | . 3 . 2 Leg . | . . . . Wheel 7 | 2 . . 5 Hover . | . . . . Flight . | . . . . Utility 10 | 2 3 1 4 Device 3 | 1 . . 2 Storage 3 | 1 1 1 . Processor . | . . . . Hackware . | . . . . Protection 4 | . 2 . 2 Artifact . | . . . . Weapon 16 | 2 5 1 8 Energy Gun . | . . . . Energy Cannon 1 | . . . 1 Ballistic Gun 9 | 2 3 . 4 Ballistic Cannon . | . . . . Launcher 3 | . 1 . 2 Special Weapon 2 | . 1 1 . Impact Weapon 1 | . . . 1 Slashing Weapon . | . . . . Piercing Weapon . | . . . . Special Melee Weapon . | . . . . Unidentified Prototypes . | . . . . Parts Lost 7 | . . . 7 Power 1 | . . . 1 Propulsion 4 | . . . 4 Utility 1 | . . . 1 Weapon 1 | . . . 1 Highest Loss Streak 2 | . . . 2 To Critical Strikes . | . . . . Average Backups 16 | 4 14 17 16 Power . | . . . . Propulsion 1 | 1 1 1 . Utility 6 | 1 6 8 6 Weapon 8 | 1 6 8 9 Tool/Special . | . . . . Unused Backups 25 | . 6 1 18 Power . | . . . . Propulsion . | . . . . Utility 9 | . 2 1 6 Weapon 16 | . 4 . 12 Tool/Special . | . . . . Average Slot Usage (%) 99 | . 100 100 99 Engine 6 | . 7 . 7 Core 7 | . 6 14 6 Treads 22 | . 20 28 22 Wheel 4 | . 7 . 5 Device 6 | . 5 . 8 Storage 14 | . 14 14 14 Protection 7 | . 8 14 5 Ballistic Gun 24 | . 26 26 23 Impact Weapon 2 | . . . 3 Peak Build Rating 37 | 8 13 15 37 Average Rating 15 | 6 11 14 16 On Entrance 9 | . 8 13 15 Avg Prop Armor Cover (%) 14 | . . . 14 Naked Turns . | . . . . Heaviest Build 97 | 13 32 92 97 Greatest Support 40 | 26 40 40 40 Greatest Overweight (x) 4 | . 1 2 4 Average Overweight (x) 2 | . . 1 3 Largest Inventory Capacity 25 | 8 15 25 25 Average Capacity 22 | 7 14 24 25 Most Carried 25 | 8 15 25 25 Average Carried 21 | 4 14 23 23 Final Capacity 25 | 8 15 25 25 Final Carried 25 | 8 15 25 25 Class Distribution -------------------- 99% | Mutant Dominant Class ---------------- Mutant | -10/Materials Mutant | -10/Mines Mutant | -10/Subcaves Resources | -11 -10 -10 -10 ----------- Run | Yrd Mat Min Sub Matter Collected 2159 | 460 826 70 803 Remotely . | . . . . Salvage Created 1614 | 212 873 110 419 Parts 106 | 20 42 10 34 Haulers Intercepted 2 | . 2 . . Recyclers Shooed 2 | 1 1 . . Parts Field Recycled . | . . . . Retrieved Matter . | . . . . Parts Self-Destructed 17 | . . . 17 Prevented . | . . . . Parts Restored . | . . . . Kills | -11 -10 -10 -10 ------- Run | Yrd Mat Min Sub Combat Hostiles Destroyed 31 | . 12 3 16 Guns 24 | . 12 3 9 AOE 7 | . . . 7 Classes Destroyed 11 | 3 4 1 3 Worker 3 | 2 1 . . Tunneler 5 | 5 . . . Hauler 2 | . 2 . . Recycler 4 | 1 2 1 . Operator 1 | . 1 . . Watcher 3 | . 3 . . Swarmer 9 | . . 3 6 Grunt 12 | . 12 . . Sentry 1 | . . . 1 Artisan 1 | . . . 1 Subdweller 9 | . . . 9 Best Kill Streak 5 | 5 3 4 5 Combat Bots Only 5 | . 2 3 5 Max Kills in Single Turn 4 | 1 1 1 4 Gunslinging . | . . . . Exploded 4 | . . . 4 Melee . | . . . . Uniques/NPCs Destroyed . | . . . . Combat | -11 -10 -10 -10 -------- Run | Yrd Mat Min Sub Hostile Shots Fired 166 | . 44 8 114 Missed 56 | . 15 2 39 Hits 110 | . 29 6 75 Projectile 110 | . 29 6 75 Actively Blocked 1 | . . . 1 Damage Taken 1621 | . 368 52 1201 Core 255 | . 77 14 164 Absorbed by Shields . | . . . . Redirected to Shielding 54 | . 16 4 34 Regen/Repaired (Parts) 444 | . 444 . . Core Remaining (%) 100 | 100 . . . Volleys Fired 168 | 15 71 10 72 Largest 2 | 2 2 2 2 Hottest 100 | 40 100 100 80 Shots Fired 302 | 30 138 15 119 Gun 268 | 30 134 10 94 Cannon 12 | . . . 12 Launcher 14 | . 1 . 13 Special 8 | . 3 5 . Kinetic 268 | 30 134 10 94 Thermal 20 | . 3 5 12 Explosive 14 | . 1 . 13 Electromagnetic . | . . . . Robot Hit Streak 20 | 5 17 3 20 Robot Miss Streak 5 | 2 5 4 3 Penetration Max . | . . . . Secondary Targets . | . . . . Shots Hit Robots 185 | 18 94 4 69 Core Hits 80 | 9 34 5 32 Critical Kills . | . . . . Critical Parts Destroyed 1 | . 1 . . Critical Strikes 1 | . 1 . . Destroy 1 | . 1 . . Melee Attacks 66 | . . . 66 Impact 66 | . . . 66 Slashing . | . . . . Piercing . | . . . . Sneak Attacks 1 | . . . 1 Combat Hostiles . | . . . . Follow-up Attacks . | . . . . Damage Inflicted 3113 | 217 1481 85 1330 Guns 2557 | 217 1462 64 814 Cannons . | . . . . Explosions 441 | . 1 . 440 Melee 76 | . . . 76 Ramming 39 | . 18 21 . Kinetic 2557 | 217 1462 64 814 Thermal . | . . . . Explosive 441 | . 1 . 440 Electromagnetic . | . . . . Impact 76 | . . . 76 Slashing . | . . . . Piercing . | . . . . Highest Corruption . | . . . . Average Corruption . | . . . . Corruption Purged . | . . . . Corruption Blocked . | . . . . Overload Shots . | . . . . Overflow Damage 10 | . . . 10 Projectiles . | . . . . Explosions 10 | . . . 10 Melee . | . . . . Knockbacks . | . . . . Impact . | . . . . Kinetic . | . . . . Secondary . | . . . . Self-Inflicted Damage 60 | . . . 60 Shots 2 | . . . 2 Rammed 7 | . 5 2 . Targets Rammed 7 | . 5 2 . Kicked . | . . . . Crushed . | . . . . Highest Temperature 140 | . 43 140 25 Average Temperature 19 | . 13 53 8 Received Heat Transfer 513 | . 210 . 303 Siege Activations . | . . . . Martial Activations . | . . . . Shielding Activations . | . . . . Robots Disrupted . | . . . . Combat Hostiles . | . . . . Robots Corrupted . | . . . . Combat Hostiles . | . . . . Parts Fried . | . . . . Impact Corruptions . | . . . . Robots Melted . | . . . . Combat Hostiles . | . . . . Parts Melted 1 | . . . 1 Heat Transferred . | . . . . Parts Sabotaged . | . . . . Parts Stolen . | . . . . Parts Stripped . | . . . . Power Chain Reactions . | . . . . Alert | -11 -10 -10 -10 ------- Run | Yrd Mat Min Sub Maximum Alert Level . | . . . . Low Security (%) 100 | 100 100 100 . Level 1 . | . . . . Level 2 . | . . . . Level 3 . | . . . . Level 4 . | . . . . Level 5 . | . . . . High Security . | . . . . Max Security . | . . . . Peak Influence 105 | 10 105 96 . Initial 26 | . . 26 . Average 23 | 2 45 4 . Influence Increases 816 | 40 473 78 225 Destroy 0b10 Robot/C 440 | . 240 60 140 Destroy 0b10 Robot/NC 85 | 40 40 5 . Destroy Leader 80 | . 60 10 10 Successful Hack 32 | . 32 . . Select Force Hacks 30 | . 30 . . Disable Machine 15 | . 15 . . Destroy Structure 14 | . 11 3 . Partial Spotted 15 | . 15 . . Lose Combat Pursuer 105 | . 30 . 75 Influence Decreases 776 | 40 405 146 185 Entered New Map 42 | . . 42 . Time Decay 704 | 40 405 104 155 Lost Part 30 | . . . 30 Squads Dispatched 3 | . 3 . . Investigation 2 | . 2 . . Extermination . | . . . . Reinforcement 1 | . 1 . . Assault . | . . . . Garrison . | . . . . Intercept . | . . . . Searches Triggered . | . . . . Construction Impeded . | . . . . Haulers Reinforced . | . . . . Active Scanning Responses . | . . . . Cargo Convoy Interrupts . | . . . . Stealth | -11 -10 -10 -10 --------- Run | Yrd Mat Min Sub Distress Signals 1 | . 1 . . Communications Jammed . | . . . . Distress Signals . | . . . . Times Spotted 42 | . 22 2 18 Peak Tracking Total 5 | . 3 2 5 Tactical Retreats 3 | . 2 . 1 Traps | -11 -10 -10 -10 ------- Run | Yrd Mat Min Sub Traps Triggered 2 | . . . 2 Indirectly . | . . . . Trap Hack Attempts . | . . . . Triggered . | . . . . Disarmed . | . . . . Reprogrammed . | . . . . Reused 3 | . . . 3 Traps Extracted . | . . . . Installed 5 | . . . 5 Triggered . | . . . . Most Traps Carried 6 | . . 5 6 Machines | -11 -10 -10 -10 ---------- Run | Yrd Mat Min Sub Machines Disabled 6 | . 1 . 5 Max in Single Turn 2 | . 1 . 2 Machines Repaired . | . . . . Machines Dismantled . | . . . . Machines Sabotaged . | . . . . Overloaded Fab Kills . | . . . . Hacking | -11 -10 -10 -10 --------- Run | Yrd Mat Min Sub Machines Accessed 13 | . 8 1 4 Terminals 6 | . 6 . . Fabricators . | . . . . Repair Stations 1 | . 1 . . Recycling Units 1 | . 1 . . Scanalyzers . | . . . . Garrison Access . | . . . . Total Hacks 38 | . 28 1 9 Successful 24 | . 14 1 9 Failed 14 | . 14 . . Catastrophic 1 | . 1 . . Database Lockouts . | . . . . Manual 23 | . 23 . . Terminals 24 | . 24 . . Fabricators . | . . . . Repair Stations 3 | . 3 . . Recycling Units 1 | . 1 . . Scanalyzers . | . . . . Garrison Access . | . . . . Terminal Hacks 11 | . 1 1 9 Record 6 | . . . 6 Open Door 2 | . . 1 1 Terminal Index 1 | . 1 . . Proto ID Catalog 1 | . . . 1 Release Object 1 | . . . 1 Fabricator Hacks . | . . . . Repair Station Hacks 2 | . 2 . . Scan Component 1 | . 1 . . Repair 1 | . 1 . . Recycling Unit Hacks . | . . . . Scanalyzer . | . . . . Garrison Access Hacks . | . . . . Unauthorized Hacks 11 | . 11 . . Terminals 10 | . 10 . . Assimilate 1 | . 1 . . Botnet 3 | . 3 . . Operators 1 | . 1 . . Skim 5 | . 5 . . Fabricators . | . . . . Repair Stations . | . . . . Recycling Units 1 | . 1 . . Tunnel 1 | . 1 . . Scanalyzers . | . . . . Garrison Access . | . . . . Data Cores Recovered . | . . . . Used . | . . . . Hacking Detections 7 | . 7 . . Full Trace Events 1 | . 1 . . Feedback Events . | . . . . Feedback Blocked . | . . . . Robot Schematics Acquired . | . . . . Robots Built . | . . . . Authchips . | . . . . Time . | . . . . Total Robot Build Rating . | . . . . Part Schematics Acquired . | . . . . Parts Built . | . . . . Authchips . | . . . . Time . | . . . . Total Part Build Rating . | . . . . Part Studies Acquired . | . . . . Parts Repaired 1 | . 1 . . Time 26 | . 26 . . Parts Recycled . | . . . . Recycled Matter . | . . . . Retrieved Matter . | . . . . Retrieved Components . | . . . . Parts Scanalyzed . | . . . . Part Schematics Acquired . | . . . . Parts Damaged . | . . . . Bothacking | -11 -10 -10 -10 ------------ Run | Yrd Mat Min Sub Used RIF Installer . | . . . . Robots Hacked . | . . . . Non-combat . | . . . . Combat . | . . . . Robot Hacks Applied . | . . . . Relay Couplers Released . | . . . . Fabnet Peak Effective % . | . . . . Robots Rewired . | . . . . Allies Hacked . | . . . . Hacks Repelled . | . . . . Allies | -11 -10 -10 -10 -------- Run | Yrd Mat Min Sub Total Allies 2 | . 1 1 . Largest Group 1 | . 1 1 . Highest-Rated Group 31 | . 10 31 . Highest-Rated Ally 31 | . 10 31 . Total Orders 1 | . 1 . . STAY 1 | . 1 . . Ally Attacks . | . . . . Total Damage . | . . . . Kills . | . . . . Allies Corrupted . | . . . . Allies Melted . | . . . . Intel | -11 -10 -10 -10 ------- Run | Yrd Mat Min Sub Active Infowar (turns) 5308 | 106 853 . 4349 Sensors 901 | . . . 901 Terrain 1228 | . . . 1228 Seismic 3179 | 106 853 . 2220 Robot Analysis Total . | . . . . Derelict Logs Recovered 2 | . . 2 . Drone Launches . | . . . . Drone Recoveries . | . . . . Exploration | -11 -10 -10 -10 ------------- Run | Yrd Mat Min Sub Turns Passed 11204 | 158 2006 2186 6854 Spaces Moved 4174 | 89 1000 680 2405 Core 3 | 3 . . . Treads 2418 | . 563 680 1175 Legs . | . . . . Wheels 1753 | 86 437 . 1230 Hover . | . . . . Flight . | . . . . Fastest Speed 50 | 50 90 160 130 Average Speed 223 | 90 133 314 239 Slowest Speed 560 | 100 160 320 560 Overloaded Moves . | . . . . Propulsion Burnouts . | . . . . Robots Hopped . | . . . . Potential Cave-ins . | . . . . Cave-ins Triggered . | . . . . Exploration Rate (%) 70 | 4 95 97 86 Regions Visited 3 Branch Regions 2 Pre-discovered Areas 4 | . 1 2 1 Known Exits Taken 2 | . 1 1 . Unknown Exits Taken 1 | 1 . . . Scrap Searched 14 | . . . 14 Spaces Dug 26 | . 3 3 20 Terrain Destroyed 90 | . 7 4 79 Melee 16 | . . . 16 Projectile 14 | . 3 4 7 AOE 60 | . 4 . 56 Terrain Rammed . | . . . . Walls Destroyed . | . . . . Machines Disabled . | . . . . Actions | -11 -10 -10 -10 --------- Run | Yrd Mat Min Sub Total 5669 | 133 1553 705 3278 Wait 1064 | 15 421 . 628 Move 4171 | 88 999 679 2405 Hop . | . . . . Pick Up 61 | 8 19 10 24 Fast Attach 9 | 7 . . 2 Attach 6 | . . . 6 Detach . | . . . . Swap 58 | . 20 3 35 Drop 54 | . 18 1 35 Fire 168 | 15 71 10 72 Melee 66 | . . . 66 Ram . | . . . . Kick . | . . . . Crush 7 | . 5 2 . Escape Stasis . | . . . . Rewire . | . . . . Trap 5 | . . . 5 Miscellaneous . | . . . . Route ------- -11/Scrapyard -10/Materials (discovered 4 exits: *Mat x2 / *Min / Sub) -10/Mines (discovered 3 exits: *Mat x2 / *Sub) -10/Subcaves (discovered 4 exits: *Mat x2 / *Rec / [*Scr]) History --------- Turn | Location | Event 7 | -11/Scrapyard | Discovered new exit (range 16) 159 | -11/Scrapyard | Entered Materials 271 | -10/Materials | Discovered new exit (range 16) 327 | -10/Materials | Build established: Mutant 617 | -10/Materials | Discovered new exit (range 14) 850 | -10/Materials | Repaired Huge Storage Unit 1486 | -10/Materials | Discovered new exit (range 16) 1705 | -10/Materials | Identified exit to Subcaves 1705 | -10/Materials | Identified exit to Mines 1778 | -10/Materials | Learned Storage security intel 1894 | -10/Materials | Learned location of 2 exits from Mines 1935 | -10/Materials | Learned location of 1 exit from Recycling 1965 | -10/Materials | Learned 2 Mines zone layouts 2005 | -10/Materials | Learned Storage emergency access door positions 2055 | -10/Materials | Learned location of 2 exits from Subcaves 2165 | -10/Materials | Entered Mines 2166 | -10/Mines | Identified exit to Materials 2195 | -10/Mines | Met a Derelict bent on vengeance 2217 | -10/Mines | Found a hidden stash of uninstalled traps 2426 | -10/Mines | Received a Rocket Launcher from a helpful Derelict 2675 | -10/Mines | Received a Mining Laser from a helpful Derelict 2817 | -10/Mines | Learned location of Zion (-6) 3000 | -10/Mines | Found the Drone Emporium 3015 | -10/Mines | Found Prototype Device 3903 | -10/Mines | Found a Scrap Suit stashed away for nefarious purposes 4351 | -10/Mines | Entered Subcaves 4352 | -10/Subcaves | Approached by a straggling Scientist 4352 | -10/Subcaves | Identified exit to Recycling 4352 | -10/Subcaves | Identified exit to Materials 4375 | -10/Subcaves | Met a Zionite searching for "candidates" 4834 | -10/Subcaves | Discovered exit to Materials (range 5) 4996 | -10/Subcaves | Scientist uncovered a shortcut to Scraptown 5476 | -10/Subcaves | Shifting Twisted Machinery released Riot Gun 5476 | -10/Subcaves | Shifting Twisted Machinery released Battle Rifle 6845 | -10/Subcaves | Shifting Twisted Machinery released Flamer 8946 | -10/Subcaves | Disturbed a concealed Subdweller 9196 | -10/Subcaves | Visited 4L-MR0's lab 9285 | -10/Subcaves | Found Gun Armor 9369 | -10/Subcaves | Visited Clippyterm 9373 | -10/Subcaves | Learned Factory trap positions 9373 | -10/Subcaves | Learned Research machine intel 9403 | -10/Subcaves | Core integrity fell below 50% 9456 | -10/Subcaves | Shifting Twisted Machinery released Battle Rifle 9493 | -10/Subcaves | Shifting Twisted Machinery released Sub. Monowheel 9623 | -10/Subcaves | A swath of the cavern ceiling suddenly collapsed 10053 | -10/Subcaves | A swath of the cavern ceiling suddenly collapsed 10860 | -10/Subcaves | Found SUBCON Basin 10961 | -10/Subcaves | Disturbed a concealed Subdweller 10982 | -10/Subcaves | Core integrity fell below 20% 11205 | -10/Subcaves | Destroyed by Autobeam Turret with Autobeam Last Messages --------------- 10993_ Searching scrap... 10993_ Found Mak. Hammer. 10993_ Found 31 Matter. 10994_ Acquired 31 matter. 10995_ Dropped Hammer. 10995_ Acquired Mak. Hammer. 10997_ Searching scrap... 10997_ Found Hvy. Battle Rifle. 10997_ Found Mak. Light Armor Plating. 10997_ Found 55 Matter. 10998_ Acquired 44 matter. 10998_ Dropped Autogun. 11000_ Acquired Mak. Light Armor Plating. 11001_ Dropped Sub. Shrapnel Launcher. 11003_ Acquired Hvy. Battle Rifle. 11005_ Searching scrap... 11005_ Found Battle Rifle. 11005_ Found 61 Matter. 11014_ Sub. Monowheel shoots sparks and powers down. 11193_ Machine disabled. Map ----- +----------------------------------------------------+ | ?????????????????????????????????????????????????? | | ?????????????????????????????????????????????????? | | ?????????????????????????????????????????????????? | | ?????????????????????????????????????????????????? | | ?????????????????????????????????????????????????? | | ?????????????????????????????????????????????????? | | #######???????????????????########???????????????? | | ##?####?????????????# " ##??????????????? | | ### ##?###????????##### ##?????????????? | | # ### ####???##????# #?????????????? | | ###### #### #???# #??## #?????????????? | | ?????## ## ######"### ##?????????????? | | ????### ##"### ## #??????????????? | | ???## ## ##?????????????? | | ???# ## ###???????????? | | ???# ## ##??????????? | | ??## #### #####??###?# | | ??# ####??# ## ##?# ### | | ### ###?????# ### | | ###???????# #### #### ## # | | ##?????????# #??####??#### ## | | #??????????# ######??????# ##? | | ##??????????# ######## ###### | | ####???????????# ## ## ##??# | | #??####????????# # #??## | | ##?## ######???# %@ ## #### | | #### #???# ## | | #?# | | #??# # | | ## ####?# ### | | ### #?##????# t t # # ###?? | | ??####??????# "### #???? | | ????????????# ?## #???? | | ###?????????? > ?# #???? | | ####??????? ??# ## #???? | | #????????#########??# #### ###???? | | ##???????????????????# ##?## ##?????? | | ##????????????????????## ##?## #####???###? | | #??????????????????????####?## ##?????## ## | | # ????????????????????????## ##???## # | | ?? ??????????????#??#??## ###??# | | ??? #???????????????????# #???## | | ???? #???????????????????# ## #??## | | ????? ???????????????????# #?# #?## | | ?????? ???????????###????# #??# ### | | ?????? ??????????# ####?# #???# # ### | | ????? ??????????## #######???# ### ##?? | | ?##? ????????## #????????# ### ##??# | | # # ?????????## " ##???????# ### #???? | | #????????????# "### ##??##### ##??? | +----------------------------------------------------+ Best States ------------- Heat Dissipation 25 Energy Generation 15 Energy Capacity 250 Matter Stores 300 Matter Capacity 300 Sight Range 16 Robot Scan Range 14 Terrain Scan Range 16 Terrain Scan Density 10 Armor Coverage 100 Propulsion Shielding 33 Weapon Shielding 33 Evasion (%) 42 Recoil Reduction 2 Item Schematics ----------------- None Robot Schematics ------------------ None Fabricated ------------ Nothing Repaired ---------- Huge Storage Unit | 26% | -10/Materials Studied --------- None Alien Tech Used ----------------- None Achievements -------------- None Challenges ------------ None Game ------ Seed DataMultireflexRegenerator Manual? 0 Play Time 00:44:30 Cumulative 456.6 hours Start 2026.08.26 @ 03:26:46 End 2026.08.26 @ 04:10:25 Sessions 1 Manual Loads 0 Difficulty Rogue Special Mode None Game No. 341 Rogue 341 Adventurer 0 Explorer 0 Win Type - Total 9 Types 4/0/3/2/0/0/0/0/0/0 Lore% 44 Gallery% 69 Achievement% 56 Wizard Run 0 Options --------- Layout 2 ASCII 0 Keyboard 1 Movement Vi Keybinds 0 Fullscreen 2 Font 32/SmallcapsGlow Map View 77x44 Zoom Use 0% Tactical HUD 1 Map Filters NONE Filters NONE Steam 1 RUN: 01320295-cbad-4704-b455-1e9ebe0ded8c